bitfinex/quotes_BTCUSD_20251207
["timestamp","ask_amount","ask_price","bid_price","bid_amount"]
[1765132501602,0.01090809,91675.0,91671.0,0.04762]
[1765132501804,0.22907257,91674.0,91671.0,0.04762]
[1765132502123,0.22907271,91675.0,91671.0,0.04762]
[1765132502333,0.21816674,91673.0,91666.0,0.01090917]
[1765132502527,0.01090821,91674.0,91668.0,0.01090893]
[1765132502728,0.01090809,91675.0,91671.0,0.01090857]
[1765132502942,0.2354639,91683.0,91674.0,0.21816436]
[1765132503147,0.2354639,91683.0,91673.0,0.22907414]
[1765132503148,0.22906102,91679.0,91673.0,0.22907414]
[1765132503352,0.22906127,91679.0,91671.0,0.005]
[1765132503523,0.21816912,91672.0,91671.0,0.005]
[1765132503729,0.21865912,91672.0,91671.0,0.005]
[1765132503936,0.26766912,91672.0,91671.0,0.005]
[1765132504137,0.2181834,91666.0,91665.0,0.0035583]
[1765132504339,0.2524534,91666.0,91665.0,0.0035583]
[1765132504722,0.03412,91667.0,91665.0,0.0035583]
[1765132504929,0.01537969,91673.0,91671.0,0.01090857]
[1765132505153,0.01537969,91673.0,91671.0,0.01490857]
[1765132505329,0.01537969,91673.0,91671.0,0.01090857]
[1765132505538,0.01537969,91673.0,91671.0,0.22907909]
[1765132505747,0.001,91672.0,91671.0,0.22907909]
[1765132506299,0.01537969,91674.0,91671.0,0.01090857]
[1765132506739,0.001,91673.0,91671.0,0.01090857]
[1765132506950,0.001,91673.0,91671.0,0.22907974]
[1765132507127,0.01537969,91674.0,91671.0,0.22907974]
[1765132507302,0.01537969,91674.0,91671.0,0.23307974]
[1765132507517,0.01637969,91674.0,91671.0,0.23307974]
[1765132508051,0.01637969,91674.0,91665.0,0.0035583]
[1765132508052,0.01090893,91668.0,91665.0,0.0035583]
[1765132508185,0.01537969,91667.0,91665.0,0.0035583]
[1765132508391,0.00098,91666.0,91665.0,0.0035583]
[1765132508826,0.01635969,91666.0,91665.0,0.0035583]
[1765132510218,0.01537969,91666.0,91665.0,0.0640483]
[1765132510423,0.01090821,91674.0,91668.0,0.22908735]
[1765132510624,0.01537969,91673.0,91670.0,0.22908229]
[1765132511223,0.01537969,91673.0,91670.0,0.01090869]
[1765132511418,0.02628802,91673.0,91670.0,0.01090869]
[1765132512047,0.01537969,91673.0,91670.0,0.22908062]
[1765132512404,0.0262879,91674.0,91671.0,0.01090857]
[1765132512636,0.01537969,91674.0,91671.0,0.01090857]
[1765132513018,0.001,91673.0,91670.0,0.23308204]
[1765132513217,0.23007665,91673.0,91670.0,0.004]
[1765132513419,0.01537969,91672.0,91670.0,0.004]
[1765132513623,0.23520273,91671.0,91670.0,0.004]
[1765132513830,0.23569273,91671.0,91670.0,0.004]
[1765132514066,0.22908578,91669.0,91665.0,0.01446758]
[1765132514215,0.01537969,91668.0,91665.0,0.01446758]
[1765132515835,0.02628862,91668.0,91665.0,0.01446758]
[1765132516049,0.02628862,91668.0,91665.0,0.0035583]
[1765132516268,0.21818102,91667.0,91665.0,0.0035583]
[1765132516433,0.01537969,91666.0,91665.0,0.0035583]
[1765132517755,0.01537969,91667.0,91665.0,0.0105583]
[1765132517892,0.01537969,91667.0,91665.0,0.0035583]
[1765132518096,0.01090845,91672.0,91669.0,0.01090881]
[1765132518298,0.01090845,91672.0,91667.0,0.01090905]
[1765132518596,0.01537969,91671.0,91669.0,0.01090881]
[1765132519004,0.01090869,91670.0,91667.0,0.01090905]
[1765132519273,0.01537969,91669.0,91665.0,0.01446758]
[1765132519499,0.01537969,91669.0,91667.0,0.006]
[1765132519889,0.01090845,91672.0,91667.0,0.01690905]
[1765132520130,0.01090845,91672.0,91667.0,0.006]
[1765132520131,0.21817626,91669.0,91667.0,0.006]
[1765132520623,0.22908507,91669.0,91665.0,0.01446758]
[1765132520829,0.01090869,91670.0,91669.0,0.005]
[1765132521175,0.01090881,91669.0,91666.0,0.09784]
[1765132521379,0.01537969,91668.0,91667.0,0.006]
[1765132521615,0.01090881,91669.0,91667.0,0.006]
[1765132521823,0.21817153,91671.0,91668.0,0.16259]
[1765132522164,0.01090774,91678.0,91674.0,0.01090821]
[1765132522370,0.01090631,91690.0,91686.0,0.01090679]
[1765132522501,0.01090631,91690.0,91689.0,0.10038]
[1765132523122,0.01090619,91691.0,91689.0,0.10038]
[1765132523785,0.01090774,91678.0,91674.0,0.002]
[1765132524006,0.22906448,91678.0,91674.0,0.002]
[1765132524300,0.01090774,91678.0,91677.0,0.06475]
[1765132524500,0.21815722,91677.0,91675.0,0.04858]
[1765132524903,0.21815722,91677.0,91675.0,0.05958]
[1765132525157,0.21815722,91677.0,91675.0,0.04858]
[1765132525848,0.21815722,91677.0,91675.0,0.04958]
[1765132527178,0.21815722,91677.0,91675.0,0.05458]
[1765132529124,0.01090702,91684.0,91676.0,0.16259]
[1765132529297,0.21813619,91686.0,91675.0,0.05458]
[1765132529298,0.01090679,91686.0,91682.0,0.07565726]
[1765132529558,0.01090643,91689.0,91685.0,0.06475]
[1765132529720,0.01090667,91687.0,91686.0,0.09784]
[1765132530031,0.0109069,91685.0,91682.0,0.01090726]
[1765132530301,0.0109069,91685.0,91684.0,0.06475]
[1765132530507,0.22904509,91685.0,91684.0,0.07561]
[1765132530709,0.22904509,91685.0,91675.0,0.14642]
[1765132530710,0.01090774,91678.0,91675.0,0.14642]
[1765132530851,0.21815722,91677.0,91676.0,0.04347]
[1765132531052,0.21815722,91677.0,91676.0,0.04447]
[1765132531370,0.21815722,91677.0,91676.0,0.04347]
[1765132531581,0.01090845,91672.0,91669.0,0.01090881]
[1765132531780,0.01090845,91672.0,91669.0,0.22908507]
[1765132532178,0.01090845,91672.0,91671.0,0.06475]
[1765132532554,0.01090857,91671.0,91668.0,0.03983233]
[1765132532757,0.01090857,91671.0,91667.0,0.01090905]
[1765132532973,0.01090869,91670.0,91667.0,0.01090905]
[1765132533309,0.01090857,91671.0,91666.0,0.01090917]
[1765132533540,0.01090857,91671.0,91668.0,0.01090893]
[1765132533746,0.01090845,91672.0,91669.0,0.01090881]
[1765132534300,0.01090845,91672.0,91671.0,0.002]
[1765132534741,0.01090857,91671.0,91667.0,0.01090905]
[1765132534945,0.22907415,91674.0,91670.0,0.01090869]
[1765132536249,0.01090833,91673.0,91669.0,0.01790881]
[1765132536461,0.01090833,91673.0,91670.0,0.01090869]
[1765132536609,0.01090845,91672.0,91669.0,0.01790881]
[1765132536815,0.01090762,91679.0,91670.0,0.01090869]
[1765132537140,0.02628755,91677.0,91674.0,0.01090821]
[1765132537310,0.01090798,91676.0,91672.0,0.01090845]
[1765132537625,0.01090809,91675.0,91671.0,0.01090857]
[1765132537826,0.02628755,91677.0,91673.0,0.01090833]
[1765132538026,0.01537969,91677.0,91674.0,0.22907235]
[1765132538230,0.01537969,91678.0,91675.0,0.01090809]
[1765132538432,0.24444289,91678.0,91674.0,0.01090821]
[1765132538701,0.01090774,91678.0,91675.0,0.01090809]
[1765132538816,0.02628743,91678.0,91675.0,0.01090809]
[1765132539263,0.01090798,91676.0,91673.0,0.001]
[1765132539440,0.02628743,91678.0,91673.0,0.01190833]
[1765132539839,0.22906758,91676.0,91673.0,0.001]
[1765132540055,0.01537969,91675.0,91673.0,0.006]
[1765132540464,0.01537969,91675.0,91674.0,0.21816436]
[1765132540662,0.01090774,91678.0,91675.0,0.01090809]
[1765132541592,0.01090786,91677.0,91673.0,0.001]
[1765132541788,0.01090786,91677.0,91672.0,0.01090845]
[1765132542010,0.01090774,91678.0,91674.0,0.01090821]
[1765132542332,0.01090774,91678.0,91675.0,0.001]
[1765132542671,0.229063,91678.0,91675.0,0.001]
[1765132542905,0.21815048,91680.0,91677.0,0.01090786]
[1765132542906,0.0109075,91680.0,91677.0,0.01090786]
[1765132543110,0.01090762,91679.0,91675.0,0.001]
[1765132543379,0.01090762,91679.0,91675.0,0.005]
[1765132543380,0.01090786,91677.0,91675.0,0.005]
[1765132543581,0.14500969,91676.0,91675.0,0.005]
[1765132543789,0.21816436,91674.0,91672.0,0.001]
[1765132544000,0.01605969,91673.0,91670.0,0.01090869]
[1765132544210,0.02696802,91673.0,91669.0,0.01090881]
[1765132544362,0.01090845,91672.0,91669.0,0.01090881]
[1765132544739,0.01090881,91669.0,91666.0,0.01090917]
[1765132544945,0.07266869,91670.0,91666.0,0.01090917]
[1765132545153,0.01090857,91671.0,91667.0,0.22909007]
[1765132545357,0.06098814,91672.0,91670.0,0.002]
[1765132545590,0.05007969,91672.0,91670.0,0.002]
[1765132546149,0.05007969,91672.0,91670.0,0.009]
[1765132546483,0.14512969,91672.0,91669.0,0.01090881]
[1765132546985,0.05007969,91672.0,91670.0,0.007]
[1765132547293,0.01537969,91672.0,91670.0,0.22517174]
[1765132547447,0.01537969,91673.0,91670.0,0.009]
[1765132547639,0.01537969,91673.0,91670.0,0.01290869]
[1765132548023,0.02628802,91673.0,91670.0,0.01290869]
[1765132548229,0.01537969,91673.0,91670.0,0.01290869]
[1765132549327,0.01537969,91673.0,91671.0,0.2181715]
[1765132549526,0.01537969,91673.0,91670.0,0.01790869]
[1765132549527,0.01537969,91673.0,91670.0,0.01990869]
[1765132549733,0.01537969,91673.0,91670.0,0.23108033]
[1765132550036,0.01090798,91676.0,91670.0,0.23108033]
[1765132550037,0.02628778,91675.0,91672.0,0.01090845]
[1765132550237,0.02628778,91675.0,91672.0,0.22907721]
[1765132550513,0.01537969,91675.0,91672.0,0.22907721]
[1765132550883,0.01537969,91675.0,91672.0,0.01090845]
[1765132551254,0.01537969,91675.0,91672.0,0.01190845]
[1765132551660,0.01537969,91675.0,91674.0,0.21816436]
[1765132551864,0.27772761,91680.0,91675.0,0.22906794]
[1765132552267,0.04867,91680.0,91677.0,0.01090786]
[1765132552568,0.01090809,91675.0,91672.0,0.001]
[1765132552803,0.01537969,91674.0,91673.0,0.21816674]
[1765132553009,0.0109075,91680.0,91676.0,0.01090798]
[1765132553320,0.01703123,91679.0,91676.0,0.22906576]
[1765132553478,0.01090726,91682.0,91679.0,0.01090762]
[1765132553677,0.01090738,91681.0,91678.0,0.01090774]
[1765132553878,0.0109075,91680.0,91677.0,0.04347]
[1765132554102,0.22905517,91681.0,91678.0,0.0982]
[1765132554103,0.01090738,91681.0,91678.0,0.0982]
[1765132554312,0.01090738,91681.0,91677.0,0.04347]
[1765132554313,0.22905948,91680.0,91677.0,0.04347]
[1765132554524,0.21815446,91679.0,91677.0,0.04347]
[1765132554725,0.01090726,91682.0,91678.0,0.01090774]
[1765132555059,0.02793861,91681.0,91678.0,0.01190774]
[1765132555214,0.01703123,91681.0,91679.0,0.21815246]
[1765132555405,0.24608839,91681.0,91678.0,0.001]
[1765132555805,0.02793861,91681.0,91678.0,0.001]
[1765132556464,0.02793861,91681.0,91679.0,0.003]
[1765132556961,0.01090726,91682.0,91678.0,0.01090774]
[1765132556962,0.02793849,91682.0,91678.0,0.01090774]
[1765132557172,0.01537969,91681.0,91678.0,0.01490774]
[1765132557346,0.01537969,91681.0,91678.0,0.01090774]
[1765132557752,0.01537969,91681.0,91679.0,0.004]
[1765132557929,0.01537969,91681.0,91679.0,0.001]
[1765132558259,0.01537969,91681.0,91678.0,0.22906032]
[1765132558437,0.01537969,91681.0,91678.0,0.23406032]
[1765132558650,0.01537969,91681.0,91678.0,0.23406062]
[1765132559182,0.01537969,91681.0,91678.0,0.01590774]
[1765132559538,0.01537969,91681.0,91678.0,0.01190774]
[1765132559743,0.01537969,91681.0,91679.0,0.003]
[1765132559952,0.01537969,91681.0,91678.0,0.01090774]
[1765132560182,0.01537969,91681.0,91679.0,0.001]
[1765132560704,0.01537969,91681.0,91678.0,0.01090774]
[1765132560910,0.01537969,91681.0,91679.0,0.003]
[1765132561536,0.09373,91680.0,91679.0,0.003]
[1765132561981,0.10910969,91680.0,91679.0,0.003]
[1765132562739,0.01090774,91678.0,91671.0,0.01090857]
[1765132562942,0.02628755,91677.0,91673.0,0.01090833]
[1765132563239,0.01090809,91675.0,91672.0,0.01090845]
[1765132563479,0.01537969,91674.0,91672.0,0.01090845]
[1765132563673,0.01537969,91674.0,91673.0,0.21816674]
[1765132563874,0.01090786,91677.0,91674.0,0.01090821]
[1765132564182,0.01537969,91676.0,91675.0,0.21816198]
[1765132564392,0.01090738,91681.0,91676.0,0.01090798]
[1765132564549,0.02628719,91680.0,91676.0,0.01090798]
[1765132564749,0.01090762,91679.0,91676.0,0.01090798]
[1765132564951,0.02628743,91678.0,91675.0,0.01090809]
[1765132565942,0.01090786,91677.0,91674.0,0.04044]
[1765132566145,0.01090786,91677.0,91673.0,0.006]
[1765132566146,0.22908156,91671.0,91668.0,0.02906745]
[1765132566334,0.21909436,91674.0,91668.0,0.01090893]
[1765132566556,0.01090857,91671.0,91667.0,0.0399765]
[1765132566841,0.01090869,91670.0,91667.0,0.02906745]
[1765132567043,0.01090857,91671.0,91667.0,0.0399765]
[1765132567260,0.01090869,91670.0,91667.0,0.02906745]
[1765132567451,0.22908465,91670.0,91667.0,0.02906745]
[1765132567628,0.21817864,91668.0,91666.0,0.02906745]
[1765132568204,0.21817864,91668.0,91667.0,0.002]
[1765132569112,0.01090845,91672.0,91667.0,0.01890905]
[1765132569413,0.01090845,91672.0,91667.0,0.01090905]
[1765132569603,0.01090845,91672.0,91667.0,0.01890905]
[1765132570055,0.22907037,91675.0,91670.0,0.01090869]
[1765132570251,0.01090786,91677.0,91672.0,0.01090845]
[1765132570463,0.01090809,91675.0,91672.0,0.01090845]
[1765132570704,0.2290568,91681.0,91674.0,0.01090821]
[1765132570898,0.01090738,91681.0,91678.0,0.06154]
[1765132571095,0.0109075,91680.0,91675.0,0.01090809]
[1765132571297,0.21815246,91679.0,91673.0,0.0887]
[1765132571500,0.01537969,91678.0,91673.0,0.0887]
[1765132572067,0.01090798,91676.0,91673.0,0.0887]
[1765132572532,0.01090833,91673.0,91672.0,0.001]
[1765132573011,0.01090845,91672.0,91669.0,0.02906131]
[1765132573243,0.01090845,91672.0,91668.0,0.06950131]
[1765132573244,0.22908225,91671.0,91668.0,0.06950131]
[1765132574020,0.22908225,91671.0,91669.0,0.002]
[1765132574221,0.01090845,91672.0,91669.0,0.01290881]
[1765132574421,0.01090833,91673.0,91669.0,0.01290881]
[1765132574631,0.01090833,91673.0,91669.0,0.04197012]
[1765132574879,0.01090845,91672.0,91669.0,0.04197012]
[1765132575186,0.22907761,91672.0,91669.0,0.04197012]
[1765132575426,0.22907761,91672.0,91669.0,0.02906131]
[1765132575621,0.01537969,91671.0,91669.0,0.03606131]
[1765132575813,0.21817388,91670.0,91669.0,0.02906131]
[1765132576057,0.21817388,91670.0,91668.0,0.04044]
[1765132576259,0.21817388,91670.0,91669.0,0.007]
[1765132576381,0.21817388,91670.0,91669.0,0.002]
[1765132576582,0.01090857,91671.0,91669.0,0.06029]
[1765132576780,0.22907761,91672.0,91669.0,0.06919881]
[1765132577060,0.22907761,91672.0,91669.0,0.07619881]
[1765132577467,0.01090809,91675.0,91670.0,0.01090869]
[1765132578047,0.01090821,91674.0,91670.0,0.01090869]
[1765132578288,0.02628802,91673.0,91669.0,0.01790881]
[1765132578565,0.02628802,91673.0,91669.0,0.01990881]
[1765132578725,0.24445483,91673.0,91669.0,0.01290881]
[1765132578929,0.22907514,91673.0,91669.0,0.01790881]
[1765132579351,0.01090821,91674.0,91670.0,0.22908257]
[1765132579747,0.22907507,91673.0,91669.0,0.01990881]
[1765132580133,0.01090845,91672.0,91669.0,0.01790881]
[1765132581190,0.01090845,91672.0,91669.0,0.01090881]
[1765132581578,0.01090845,91672.0,91670.0,0.009]
[1765132581779,0.01090833,91673.0,91670.0,0.009]
[1765132581974,0.22906444,91678.0,91674.0,0.01090821]
[1765132582297,0.01090809,91675.0,91672.0,0.01090845]
[1765132583247,0.01090643,91689.0,91685.0,0.0109069]
[1765132583377,0.01090548,91697.0,91692.0,0.01090607]
[1765132583578,0.01322936,91698.0,91697.0,0.04153]
[1765132584167,0.002324,91698.0,91697.0,0.09982]
[1765132584779,0.002324,91698.0,91697.0,0.09988873]
[1765132585197,0.002324,91698.0,91697.0,0.10288873]
[1765132585447,0.002324,91698.0,91697.0,0.10388873]
[1765132589236,0.002324,91698.0,91697.0,0.20024873]
[1765132589801,0.002324,91698.0,91697.0,0.10388873]
[1765132590215,0.01770369,91698.0,91697.0,0.10388873]
[1765132591318,0.01770369,91698.0,91697.0,0.04559873]
[1765132591640,0.11661369,91698.0,91697.0,0.00406873]
[1765132592136,0.07725369,91698.0,91697.0,0.00406873]
[1765132592547,0.01770369,91698.0,91697.0,0.00406873]
[1765132593054,0.002324,91698.0,91697.0,0.00406873]
[1765132593410,0.002324,91698.0,91697.0,0.20024873]
[1765132594038,0.14711687,91698.0,91697.0,0.00406873]
[1765132594236,0.16249656,91698.0,91697.0,0.00406873]
[1765132594439,0.17952779,91698.0,91697.0,0.00406873]
[1765132594839,0.17952779,91698.0,91697.0,0.00306873]
[1765132595050,0.18052779,91698.0,91697.0,6.873e-05]
[1765132595452,0.18752779,91698.0,91697.0,6.873e-05]
[1765132597737,0.07636656,91698.0,91697.0,6.873e-05]
[1765132597879,0.01193687,91698.0,91697.0,0.15471873]
[1765132598227,0.010324,91698.0,91697.0,0.37282837]
[1765132598439,0.009324,91698.0,91697.0,0.37282837]
[1765132598602,0.002324,91698.0,91697.0,0.37282837]
[1765132599148,0.002324,91698.0,91697.0,0.69582837]
[1765132599339,0.006324,91698.0,91697.0,0.71803235]
[1765132599556,0.002324,91698.0,91697.0,0.71803235]
[1765132599867,0.002324,91698.0,91697.0,0.69582837]
[1765132600153,0.002324,91698.0,91697.0,6.873e-05]
[1765132600365,0.11661369,91698.0,91697.0,6.873e-05]
[1765132600571,0.11661369,91698.0,91697.0,0.00306873]
[1765132600774,0.11961369,91698.0,91697.0,0.00306873]
[1765132600992,0.11661369,91698.0,91697.0,6.873e-05]
[1765132601192,0.11822656,91698.0,91697.0,6.873e-05]
[1765132601437,0.01807062,91698.0,91697.0,0.00106873]
[1765132601608,0.03510185,91698.0,91697.0,0.00106873]
[1765132602016,0.01972216,91698.0,91697.0,0.00106873]
[1765132602818,0.00269093,91698.0,91697.0,0.00106873]
[1765132603018,0.00269093,91698.0,91697.0,0.06023873]
[1765132603224,0.00107806,91698.0,91697.0,0.06023873]
[1765132603978,0.00107806,91698.0,91697.0,0.14753873]
[1765132604183,0.00107806,91698.0,91697.0,0.16974271]
[1765132605587,0.00107806,91698.0,91697.0,0.17696471]
[1765132606156,0.00107806,91698.0,91697.0,0.49996471]
[1765132607412,0.00107806,91698.0,91697.0,0.50396471]
[1765132607644,0.00107806,91698.0,91697.0,0.50296471]
[1765132608692,0.00107806,91698.0,91697.0,0.01129073]
[1765132609024,0.00107806,91698.0,91697.0,0.01329073]
[1765132609629,0.00107806,91698.0,91697.0,0.01129073]
[1765132609996,0.00107806,91698.0,91697.0,0.00829073]
[1765132611012,0.01829806,91698.0,91697.0,0.00829073]
[1765132611642,0.0070673,91698.0,91697.0,0.00829073]
[1765132612720,0.21810512,91699.0,91697.0,0.00829073]
[1765132613516,0.21810512,91699.0,91697.0,0.00729073]
[1765132613874,0.21810512,91699.0,91697.0,0.00829073]
[1765132614459,0.21810709,91699.0,91697.0,0.00829073]
[1765132614768,0.22900949,91700.0,91697.0,0.00829073]
[1765132615004,0.01537969,91699.0,91697.0,0.00829073]
[1765132615543,0.21810726,91698.0,91697.0,0.00729073]
[1765132615744,0.23532726,91698.0,91697.0,0.00729073]
[1765132616947,0.32448013,91698.0,91697.0,0.00729073]
[1765132617744,0.32248013,91698.0,91697.0,0.00729073]
[1765132618169,0.32748013,91698.0,91697.0,0.00729073]
[1765132618365,0.32848013,91698.0,91697.0,0.00729073]
[1765132624355,0.41455974,91698.0,91697.0,0.00729073]
[1765132624756,0.43676372,91698.0,91697.0,0.00729073]
[1765132625575,0.75976372,91698.0,91697.0,0.00729073]
[1765132626233,0.82228671,91698.0,91697.0,0.00729073]
[1765132629033,0.80008273,91698.0,91697.0,0.00729073]
[1765132630983,0.82228671,91698.0,91697.0,0.00729073]
[1765132631183,0.80008273,91698.0,91697.0,0.00729073]
[1765132633008,0.82228671,91698.0,91697.0,0.00729073]
[1765132637498,0.32848013,91698.0,91697.0,0.00729073]
[1765132638290,0.35068411,91698.0,91697.0,0.00729073]
[1765132638702,0.32848013,91698.0,91697.0,0.00729073]
[1765132643713,0.34580013,91698.0,91697.0,0.00729073]
[1765132643922,0.22410726,91698.0,91697.0,0.00729073]
[1765132644150,0.006,91698.0,91697.0,0.06453073]
[1765132644341,0.006,91698.0,91697.0,0.15334073]
[1765132644563,0.006,91698.0,91697.0,0.06453073]
[1765132644943,0.001,91698.0,91697.0,0.06453073]
[1765132645248,0.01090488,91702.0,91697.0,0.06453073]
[1765132645249,0.01090453,91705.0,91702.0,0.01090488]
[1765132645638,0.01090453,91705.0,91702.0,0.05287488]
[1765132646060,0.01090429,91707.0,91703.0,0.01090476]
[1765132646515,0.004,91705.0,91703.0,0.01090476]
[1765132646725,0.004,91705.0,91703.0,0.22899785]
[1765132647100,0.004,91705.0,91704.0,0.21809299]
[1765132647298,0.004,91705.0,91703.0,0.01090476]
[1765132647639,0.004,91705.0,91704.0,0.27533299]
[1765132647783,0.004,91705.0,91703.0,0.01090476]
[1765132647967,0.01090417,91708.0,91703.0,0.01090476]
[1765132648167,0.004,91707.0,91703.0,0.01090476]
[1765132648601,0.01090429,91707.0,91704.0,0.01090464]
[1765132648804,0.004,91705.0,91704.0,0.01090464]
[1765132649148,0.01090429,91707.0,91704.0,0.01090464]
[1765132649353,0.01090429,91707.0,91703.0,0.01090476]
[1765132649555,0.21809299,91704.0,91694.0,0.01090583]
[1765132649763,0.21810012,91701.0,91696.0,0.04153]
[1765132649933,0.21810012,91701.0,91694.0,0.01090583]
[1765132650143,0.21810667,91699.0,91694.0,0.01090583]
[1765132650293,0.04283,91700.0,91697.0,0.23630525]
[1765132650496,0.04283,91700.0,91697.0,0.01819621]
[1765132650698,0.27671726,91698.0,91697.0,0.00729073]
[1765132651079,0.31284726,91698.0,91697.0,0.00729073]
[1765132652354,0.31484726,91698.0,91697.0,0.00729073]
[1765132652617,0.31446013,91698.0,91697.0,0.00729073]
[1765132652786,0.31946013,91698.0,91697.0,0.00729073]
[1765132653188,0.32046013,91698.0,91697.0,0.00729073]
[1765132660693,0.34266411,91698.0,91697.0,0.00729073]
[1765132660892,0.42500217,91698.0,91697.0,0.00729073]
[1765132662726,0.33778013,91698.0,91697.0,0.00729073]
[1765132662927,0.35998411,91698.0,91697.0,0.00729073]
[1765132664859,0.33778013,91698.0,91697.0,0.00729073]
[1765132665455,0.006,91698.0,91697.0,1.12026137]
[1765132665652,0.006,91698.0,91697.0,0.73143037]
[1765132665819,0.006,91698.0,91697.0,0.74875037]
[1765132666024,0.006,91698.0,91697.0,0.79992752]
[1765132666436,0.005,91698.0,91697.0,0.77095435]
[1765132666788,0.05467969,91719.0,91715.0,0.01090334]
[1765132666923,0.0393,91719.0,91716.0,0.22896752]
[1765132668001,0.0433,91719.0,91716.0,0.22896752]
[1765132668128,0.0433,91719.0,91716.0,0.2289666]
[1765132669332,0.0433,91719.0,91716.0,0.01090322]
[1765132669957,0.05303,91717.0,91716.0,0.01090322]
[1765132670591,0.01090357,91713.0,91707.0,0.01090429]
[1765132670775,0.01090357,91713.0,91708.0,0.02818417]
[1765132670935,0.01090369,91712.0,91708.0,0.02818417]
[1765132671407,0.01090369,91712.0,91709.0,0.01090405]
[1765132671622,0.01090357,91713.0,91709.0,0.01090405]
[1765132671819,0.01090381,91711.0,91708.0,0.02818417]
[1765132672257,0.01090357,91713.0,91709.0,0.01090405]
[1765132672463,0.01090357,91713.0,91710.0,0.01090393]
[1765132672775,0.01090381,91711.0,91708.0,0.02918417]
[1765132673142,0.09249,91709.0,91708.0,0.001]
[1765132673338,0.2290079,91700.0,91697.0,0.04882073]
[1765132673503,0.22900339,91702.0,91698.0,0.01728]
[1765132673707,0.21809119,91705.0,91699.0,0.01090524]
[1765132673907,0.05197692,91709.0,91705.0,0.01090453]
[1765132674213,0.01090417,91708.0,91705.0,0.01090453]
[1765132674849,0.01251692,91709.0,91705.0,0.01090453]
[1765132675182,0.2180656,91716.0,91708.0,0.01090417]
[1765132675183,0.01090346,91714.0,91708.0,0.01090417]
[1765132675370,0.0109031,91717.0,91714.0,0.01090346]
[1765132675571,0.0109031,91717.0,91710.0,0.05693]
[1765132675572,0.01090357,91713.0,91710.0,0.05693]
[1765132675709,0.01090346,91714.0,91711.0,0.04153]
[1765132675911,0.01090322,91716.0,91711.0,0.05243381]
[1765132676109,0.02628291,91716.0,91711.0,0.05243381]
[1765132676568,0.01090334,91715.0,91712.0,0.01090369]
[1765132676765,0.002,91714.0,91712.0,0.01090369]
[1765132677132,0.01090334,91715.0,91712.0,0.01090369]
[1765132677356,0.02628303,91715.0,91712.0,0.01090369]
[1765132677943,0.01290346,91714.0,91711.0,0.05243381]
[1765132678542,0.23097309,91714.0,91711.0,0.04153]
[1765132678744,0.06530369,91712.0,91706.0,0.01090441]
[1765132679020,0.01090357,91713.0,91708.0,0.01090417]
[1765132679229,0.01090357,91713.0,91709.0,0.2289851]
[1765132679732,0.01090369,91712.0,91709.0,0.01090405]
[1765132680228,0.01090369,91712.0,91701.0,0.010905]
[1765132680229,0.01090441,91706.0,91701.0,0.010905]
[1765132680431,0.01090441,91706.0,91704.0,0.01728]
[1765132680649,0.01090453,91705.0,91701.0,0.01728]
[1765132680843,0.01090453,91705.0,91701.0,0.028185]
[1765132681204,0.01090453,91705.0,91702.0,0.01090488]
[1765132681710,0.01090441,91706.0,91702.0,0.01090488]
[1765132681917,0.01090441,91706.0,91703.0,0.002]
[1765132682143,0.01090381,91711.0,91708.0,0.01090417]
[1765132682343,0.01090393,91710.0,91703.0,0.03449]
[1765132682505,0.010905,91701.0,91695.0,0.01090572]
[1765132682702,0.08062,91698.0,91693.0,0.01728]
[1765132682918,0.08062,91698.0,91691.0,0.01090619]
[1765132683103,0.16171,91698.0,91690.0,0.01090631]
[1765132683304,0.24530441,91698.0,91677.0,0.03987013]
[1765132683509,0.26750839,91698.0,91675.0,0.02896227]
[1765132683711,0.26750839,91698.0,91675.0,0.04624227]
[1765132683949,0.27050839,91698.0,91677.0,0.01090786]
[1765132684366,0.27050839,91698.0,91675.0,0.01728]
[1765132684735,0.27050839,91698.0,91674.0,0.01090821]
[1765132684935,0.27050839,91698.0,91673.0,0.01090833]
[1765132685272,0.65403138,91698.0,91667.0,0.21818006]
[1765132685482,0.65903138,91698.0,91667.0,0.21818006]
[1765132685698,0.65903138,91698.0,91669.0,0.21817574]
[1765132685842,0.65903138,91698.0,91669.0,0.22908455]
[1765132686052,0.65803138,91698.0,91672.0,0.01090845]
[1765132686259,0.65803138,91698.0,91673.0,0.01090833]
[1765132686505,0.66103138,91698.0,91673.0,0.01090833]
[1765132686673,0.6338274,91698.0,91675.0,0.01090809]
[1765132686880,0.65603138,91698.0,91672.0,0.01090845]
[1765132687080,0.66803138,91698.0,91674.0,0.01090821]
[1765132687282,0.66803138,91698.0,91675.0,0.01090809]
[1765132687665,0.66803138,91698.0,91674.0,0.01090821]
[1765132687866,0.66803138,91698.0,91675.0,0.01090809]
[1765132688294,0.66803138,91698.0,91674.0,0.01090821]
[1765132688676,0.66803138,91698.0,91675.0,0.01090809]
[1765132689024,0.66803138,91698.0,91669.0,0.01090881]
[1765132689229,0.66803138,91698.0,91665.0,0.22167345]
[1765132689230,0.66803138,91698.0,91665.0,0.00348957]
[1765132689364,0.09453,91666.0,91665.0,0.00348957]
[1765132689793,0.14366,91666.0,91665.0,0.00348957]
[1765132690540,0.14372012,91666.0,91665.0,0.00348957]
[1765132690950,0.04019012,91666.0,91665.0,0.00348957]
[1765132691149,6.012e-05,91666.0,91665.0,0.00348957]
[1765132691387,6.012e-05,91666.0,91665.0,0.05547957]
[1765132691537,0.00106012,91666.0,91665.0,1.07684567]
[1765132691700,0.00106012,91666.0,91665.0,0.85032933]
[1765132692115,0.00106012,91666.0,91665.0,0.8802916]
[1765132692319,6.012e-05,91666.0,91665.0,0.8802916]
[1765132692519,6.012e-05,91666.0,91665.0,0.8792916]
[1765132692719,6.012e-05,91666.0,91665.0,0.8822916]
[1765132692977,6.012e-05,91666.0,91665.0,0.85332933]
[1765132693320,6.012e-05,91666.0,91665.0,0.80556835]
[1765132693525,6.012e-05,91666.0,91665.0,0.72310933]
[1765132693719,6.012e-05,91666.0,91665.0,0.86960533]
[1765132694144,6.012e-05,91666.0,91665.0,0.89842194]
[1765132697232,6.012e-05,91666.0,91665.0,0.86960533]
[1765132698419,6.012e-05,91666.0,91665.0,0.72310933]
[1765132700656,6.012e-05,91666.0,91665.0,0.70582933]
[1765132700851,6.012e-05,91666.0,91665.0,0.70090535]
[1765132701852,6.012e-05,91666.0,91665.0,0.72310933]
[1765132702264,6.012e-05,91666.0,91665.0,0.70090535]
[1765132702473,6.012e-05,91666.0,91665.0,0.70040933]
[1765132704911,6.012e-05,91666.0,91665.0,0.68312933]
[1765132705114,6.012e-05,91666.0,91665.0,0.70040933]
[1765132705915,6.012e-05,91666.0,91665.0,0.68312933]
[1765132706120,6.012e-05,91666.0,91665.0,0.70040933]
[1765132706447,6.012e-05,91666.0,91665.0,0.6897683]
[1765132706653,6.012e-05,91666.0,91665.0,0.7070483]
[1765132707214,6.012e-05,91666.0,91665.0,0.67820535]